fUST/lending_fUST_20250621
["ID","MTS","AMOUNT","RATE_DAILY","PERIOD"]
[366837206,1750499443822,-153.0,0.00023226,2]
[366837207,1750499443831,-153.0,0.00023228,2]
[366837208,1750499443840,-153.0,0.0002323,2]
[366837209,1750499443850,-153.0,0.0002323,2]
[366837210,1750499443860,-841.95880423,0.00023245,8]
[366837211,1750499443869,-305.43121282,0.00023373,2]
[366837212,1750499443879,-529.54448189,0.00023373,2]
[366837213,1750499443888,-440.0,0.00023376,2]
[366837214,1750499443898,-841.95880423,0.00023383,9]
[366837215,1750499443907,-674.08,0.0002339,3]
[366837216,1750499443916,-918.31,0.000234,7]
[366837217,1750499443926,-490.040356,0.00023422,4]
[366837218,1750499443935,-406.0,0.00023468,2]
[366837219,1750499443944,-384.51364755,0.00023493,2]
[366837220,1750499443953,-160.0,0.00023497,2]
[366837221,1750499443962,-1000.0,0.00023498,2]
[366837222,1750499443971,-151.0,0.00023498,7]
[366837223,1750499443980,-841.95880423,0.00023521,9]
[366837224,1750499443989,-151.0,0.00023521,7]
[366837225,1750499443999,-836.41202323,0.00023542,2]
[366837226,1750499444008,-167.48249208,0.00023577,2]
[366837227,1750499444017,-500.0,0.00023646,2]
[366837228,1750499444026,-841.95880423,0.00023659,9]
[366837229,1750499444036,-500.0,0.00023677,2]
[366837230,1750499444045,-4999.44,0.00023705,2]
[366837231,1750499444054,-151.0,0.00023705,7]
[366837232,1750499444063,-720.49820065,0.00023778,3]
[366837233,1750499444072,-317.0,0.00023778,3]
[366837234,1750499444082,-143.89376799,0.00023778,3]
[366837242,1750499446728,-148.20818709,0.00023778,3]
[366837243,1750499446737,-841.95880423,0.00023797,9]
[366837244,1750499446746,-166.25,0.000238,2]
[366837245,1750499446755,-151.0,0.00023822,7]
[366837246,1750499446765,-151.0,0.00023885,2]
[366837247,1750499446775,-500.0,0.00023885,2]
[366837248,1750499446784,-2941.34321286,0.000239,2]
[366839541,1750499981559,-5000.0,0.00021598,2]
[366839542,1750499982086,-300.0,0.00021816,2]
[366839543,1750499982107,-6297.55167347,0.00021817,2]
[366839544,1750499982129,-380.00409345,0.00021917,2]
[366839545,1750499982151,-160.0,0.00022416,2]
[366839546,1750499982172,-390.6090662,0.00022679,2]
[366839547,1750499982196,-168.0,0.00022873,2]
[366839548,1750499982225,-472.00485316,0.000229,8]
[366839549,1750499982252,-472.0048531,0.00022969,8]
[366839550,1750499982273,-300.0,0.00023002,2]
[366839551,1750499982300,-472.0048531,0.00023038,8]
[366839552,1750499982321,-836.41202323,0.00023092,2]
[366839553,1750499982348,-1200.0,0.000231,2]
[366839554,1750499982376,-422.19053617,0.00023103,2]
[366839555,1750499982399,-270.21804812,0.00023103,2]
[366839558,1750500314847,-450.0,0.00020866,2]
[366839559,1750500355142,-311.42016465,0.0002,2]
[366839560,1750500383068,-4450.0,0.000198,2]
[366839561,1750500425082,-550.0,0.000198,2]
[366839562,1750500425105,-2085.95090731,0.0002,2]
[366839563,1750500438143,-774.03067978,0.000198,2]
[366839565,1750500545090,-2618.10848556,0.000198,2]
[366839566,1750500545111,-151.92258243,0.000199,2]
[366839567,1750500545131,-873.62892804,0.0002,2]
[366839568,1750500545151,-164.387,0.00020866,2]
[366839569,1750500545171,-62.43499045,0.0002126,2]
[366839740,1750500638551,-212.86716,0.00019587,2]
[366839742,1750500638560,-150.0,0.00020938,2]
[366839744,1750500638570,-332.09141681,0.00021047,2]
[366839746,1750500638579,-500.0,0.00021163,2]
[366839748,1750500638588,-241.41017439,0.00021578,2]
[366839750,1750500638598,-184.52713246,0.00021949,2]
[366839752,1750500638607,-836.41202323,0.0002204,2]
[366839754,1750500638616,-107.89605156,0.00022472,2]
[366839989,1750500640806,-328.10394844,0.00022472,2]
[366839991,1750500640815,-207.4,0.00022548,2]
[366839993,1750500640825,-500.0,0.00022548,2]
[366839995,1750500640834,-500.0,0.00022548,2]
[366839997,1750500640843,-500.0,0.00022548,2]
[366839999,1750500640852,-500.0,0.00022548,2]
[366840001,1750500640861,-500.0,0.00022548,2]
[366840003,1750500640871,-500.0,0.00022548,2]
[366840004,1750500640883,-300.0,0.0002256,2]
[366840006,1750500640892,-10083.960437,0.00022561,2]
[366840009,1750500640904,-2636.09170924,0.00022561,2]
[366840418,1750500644902,-2499.0,0.00022248,2]
[366840420,1750500644912,-14.15306016,0.00022561,2]
[366840423,1750500644926,-12165.7947936,0.00022561,2]
[366840425,1750500644936,-436.0,0.0002282,2]
[366840427,1750500644945,-151.0,0.00023104,7]
[366840429,1750500644958,-173.716717,0.00023104,7]
[366840431,1750500644968,-173.716717,0.00023104,7]
[366840433,1750500644977,-151.0,0.00023104,7]
[366840435,1750500644986,-188.869624,0.00023104,7]
[366840437,1750500644997,-436.0,0.00023123,2]
[366840438,1750500645007,-436.0,0.00023175,2]
[366840439,1750500645016,-153.0,0.00023181,2]
[366840440,1750500645026,-237.4908537,0.00023342,2]
[366840441,1750500645036,-493.995448,0.00023422,4]
[366840442,1750500645045,-436.0,0.00023424,2]
[366840443,1750500645054,-168.0,0.00023453,2]
[366840444,1750500645063,-168.0,0.00023485,2]
[366840445,1750500645073,-406.0,0.00023496,2]
[366840446,1750500645081,-173.716717,0.00023498,7]
[366840447,1750500645091,-173.716717,0.00023498,7]
[366840448,1750500645101,-151.0,0.00023498,7]
[366840449,1750500645111,-151.0,0.00023498,7]
[366840450,1750500645120,-5001.06,0.00023528,2]
[366840451,1750500645129,-151.0,0.00023705,7]
[366840452,1750500645138,-168.0,0.00023705,2]
[366840453,1750500645147,-160.0,0.00023786,2]
[366840454,1750500645156,-249.73,0.000238,2]
[366840455,1750500645166,-280.48015211,0.00023837,2]
[366840456,1750500645175,-500.0,0.00023899,2]
[366840457,1750500645184,-202.9947689,0.00023899,2]
[366840458,1750500645194,-500.0,0.00023899,2]
[366840459,1750500645203,-500.0,0.00023899,2]
[366840460,1750500645213,-500.0,0.00023899,2]
[366840462,1750500645222,-500.0,0.00023899,2]
[366840464,1750500645231,-500.0,0.00023899,2]
[366840466,1750500645241,-500.0,0.00023899,2]
[366840468,1750500645250,-500.0,0.00023899,2]
[366840470,1750500645260,-500.0,0.00023899,2]
[366840472,1750500645269,-500.0,0.00023899,2]
[366840474,1750500645279,-618.42772846,0.00023899,2]
[366840476,1750500645288,-500.0,0.00023899,2]
[366840478,1750500645297,-500.0,0.00023899,2]
[366840480,1750500645307,-400.0,0.00023899,2]
[366840482,1750500645316,-932.28976326,0.000239,2]
[366840568,1750500646118,-1705.85489733,0.000239,2]
[366840572,1750500646129,-3606.00822232,0.000239,2]
[366840574,1750500646139,-151.0,0.000239,7]
[366840577,1750500646149,-151.945519,0.000239,7]
[366840580,1750500646158,-158.861752,0.000239,7]
[366840582,1750500646168,-151.0,0.000239,7]
[366840584,1750500646178,-151.0,0.000239,2]
[366840586,1750500646188,-500.0,0.000239,2]
[366840588,1750500646197,-500.0,0.000239,2]
[366840590,1750500646206,-508.98442239,0.000239,10]
[366840593,1750500646217,-151.0,0.00023912,7]
[366840595,1750500646227,-215.0738,0.00023917,2]
[366840597,1750500646237,-151.0,0.00023927,2]
[366840599,1750500646246,-478.24375591,0.00023927,2]
[366840609,1750500647181,-21.75624409,0.00023927,2]
[366840610,1750500647191,-508.98442215,0.00023934,10]
[366840611,1750500647201,-152.549003,0.00023935,7]
[366840612,1750500647210,-152.11626,0.00023935,7]
[366840613,1750500647219,-124.27875008,0.00023935,7]
[366840614,1750500647282,-86.00340886,0.00023935,7]
[366840634,1750500901685,-4612.0,0.00019587,2]
[366840635,1750500903222,1357.12944792,0.00024658,120]
[366840637,1750501101119,-102.0932441,0.00019587,2]
[366840639,1750501230807,200.0,0.00024132,120]
[366840640,1750501291320,200.0,0.0002424,120]
[366840641,1750501292223,150.5,0.00024387,120]
[366840642,1750501292587,150.5,0.00024387,120]
[366840643,1750501292972,150.5,0.00024377,120]
[366840644,1750501293043,242.29,0.00024377,120]
[366840645,1750501293447,197.94,0.00024367,120]
[366840646,1750501411143,200.0,0.00024338,120]
[366840647,1750501412053,150.5,0.00024387,120]
[366840648,1750501412505,150.5,0.00024377,120]
[366840649,1750501414433,296.02,0.00024367,120]
[366840650,1750501421761,-1071.0,0.00020686,2]
[366840651,1750501439058,345.72,0.00019102,2]
[366840653,1750501590745,200.0,0.00024372,120]
[366840654,1750501604561,2000.0,0.00020168,120]
[366840655,1750501613911,-5000.0,0.00020587,2]
[366840656,1750501693259,160.3534,0.00024657,120]
[366840657,1750501718476,6303.48788126,0.00019,20]
[366840658,1750501726959,157.86366111,0.00019,20]
[366840659,1750501756123,-158.51095816,0.000199,2]
[366840660,1750501756146,-390.6090662,0.00019921,2]
[366840661,1750501756170,-300.0,0.00019999,2]
[366840662,1750501756191,-14899.21576981,0.0002,2]
[366840663,1750501756214,-7774.05113352,0.0002,7]
[366840664,1750501756235,-158.51095816,0.00020129,2]
[366840665,1750501756256,-158.51095816,0.00020357,2]
[366840666,1750501756277,-158.51095816,0.00020586,2]
[366840667,1750501756299,-5000.0,0.00020686,2]
[366840668,1750501756319,-208.4161748,0.00020895,2]
[366840669,1750501756344,-300.0,0.00021126,2]
[366840670,1750501756366,-500.0,0.00021126,2]
[366840671,1750501756386,-192.91653483,0.00021126,2]
[366840672,1750501756408,-500.0,0.00021126,2]
[366840673,1750501756430,-500.0,0.00021126,2]
[366840674,1750501756451,-500.0,0.00021126,2]
[366840675,1750501756474,-500.0,0.00021126,2]
[366840676,1750501756495,-500.3111991,0.00021126,2]
[366840677,1750501756516,-500.0,0.00021126,2]
[366840678,1750501756537,-500.0,0.00021126,2]
[366840679,1750501756558,-368.81179217,0.00021126,2]
[366840680,1750501756579,-500.0,0.00021126,2]
[366840681,1750501756599,-500.0,0.00021126,2]
[366840682,1750501756620,-500.0,0.00021126,2]
[366840683,1750501756644,-575.99547357,0.00021126,2]
[366840684,1750501756664,-500.0,0.00021126,2]
[366840685,1750501756686,-500.0,0.00021126,2]
[366840686,1750501756707,-500.0,0.00021126,2]
[366840687,1750501756852,-500.0,0.00021126,2]
[366840688,1750501756873,-615.05061481,0.00021126,2]
[366840689,1750501756894,-500.0,0.00021126,2]
[366840690,1750501756914,-500.0,0.00021126,2]
[366840691,1750501756935,-500.0,0.00021126,2]
[366840692,1750501756955,-500.0,0.00021126,2]
[366840693,1750501756976,-500.0,0.00021126,2]
[366840694,1750501756997,-500.0,0.00021126,2]
[366840695,1750501757019,-500.0,0.00021126,2]
[366840696,1750501757039,-500.0,0.00021126,2]
[366840697,1750501757060,-500.0,0.00021126,2]
[366840698,1750501757080,-500.0,0.00021126,2]
[366840699,1750501757101,-459.39826906,0.00021126,2]
[366840700,1750501757123,-184.66378967,0.00021126,2]
[366840701,1750501757143,-500.0,0.00021126,2]
[366840702,1750501757165,-536.95975452,0.00021126,2]
[366840703,1750501757186,-500.0,0.00021126,2]
[366840704,1750501757206,-500.0,0.00021126,2]
[366840705,1750501757229,-500.0,0.00021126,2]
[366840706,1750501757249,-500.0,0.00021126,2]
[366840707,1750501757270,-500.0,0.00021126,2]
[366840708,1750501757293,-500.0,0.00021126,2]
[366840709,1750501757313,-500.0,0.00021126,2]
[366840710,1750501757339,-500.0,0.00021126,2]
[366840711,1750501757359,-500.0,0.00021126,2]
[366840712,1750501757380,-500.0,0.00021126,2]
[366840713,1750501757407,-500.0,0.00021126,2]
[366840714,1750501757430,-500.0,0.00021126,2]
[366840715,1750501757451,-500.0,0.00021126,2]
[366840716,1750501757472,-500.0,0.00021126,2]
[366840717,1750501757493,-500.0,0.00021126,2]
[366840718,1750501757514,-500.0,0.00021126,2]
[366840719,1750501757535,-500.0,0.00021126,2]
[366840720,1750501757556,-500.0,0.00021126,2]
[366840721,1750501757577,-500.0,0.00021126,2]
[366840722,1750501757600,-500.0,0.00021126,2]
[366840723,1750501757621,-500.0,0.00021126,2]
[366840724,1750501757643,-500.0,0.00021126,2]
[366840725,1750501757663,-500.0,0.00021126,2]
[366840726,1750501757684,-500.0,0.00021126,2]
[366840727,1750501757705,-500.0,0.00021126,2]
[366840728,1750501757726,-588.79906186,0.00021126,2]
[366840729,1750501757746,-500.0,0.00021126,2]
[366840730,1750501757766,-500.0,0.00021126,2]
[366840731,1750501757786,-500.0,0.00021126,2]
[366840732,1750501757806,-500.0,0.00021126,2]
[366840733,1750501757827,-500.0,0.00021126,2]
[366840734,1750501757847,-500.0,0.00021126,2]
[366840735,1750501757867,-500.0,0.00021126,2]
[366840736,1750501757888,-500.0,0.00021126,2]
[366840737,1750501757909,-500.0,0.00021126,2]
[366840738,1750501757928,-500.0,0.00021126,2]
[366840739,1750501757948,-500.0,0.00021126,2]
[366840740,1750501757967,-588.79906186,0.00021126,2]
[366840741,1750501757987,-213.50146961,0.00021126,2]
[366840742,1750501758006,-411.20093814,0.00021126,2]
[366840743,1750501758025,-28401.93411416,0.00021126,2]
[366840744,1750501758045,-300.0,0.00021127,2]
[366840745,1750501758066,-300.0,0.00021127,2]
[366840746,1750501758086,-1200.0,0.00021127,2]
[366840747,1750501758106,-164.388,0.00021127,2]
[366840748,1750501758126,-205.15223385,0.00021127,2]
[366840749,1750501758149,-500.0,0.00021127,2]
[366840750,1750501758170,-500.0,0.00021127,2]
[366840751,1750501758191,-500.0,0.00021127,2]
[366840752,1750501758214,-500.0,0.00021127,2]
[366840753,1750501758238,-500.0,0.00021127,2]
[366840754,1750501758259,-500.0,0.00021127,2]
[366840755,1750501758281,-500.0,0.00021127,2]
[366840756,1750501758303,-500.0,0.00021127,2]
[366840757,1750501758325,-559.05834276,0.00021127,2]
[366840758,1750501758349,-500.0,0.00021127,2]
[366840759,1750501758371,-500.0,0.00021127,2]
[366840760,1750501758394,-500.0,0.00021127,2]
[366840761,1750501758416,-500.0,0.00021127,2]
[366840762,1750501758438,-250.0,0.00021127,2]
[366840763,1750501758461,-453.75124351,0.00021128,2]
[366840764,1750501758527,-545.34,0.00021117,10]
[366840765,1750501758548,-1462.26921732,0.00021128,2]
[366840766,1750501770519,200.0,0.00024369,120]
[366840771,1750501774114,-5000.0,0.00020917,2]
[366840772,1750501774137,-605.20218515,0.00021126,2]
[366840773,1750501774159,-500.0,0.00021126,2]
[366840774,1750501774181,-462.08539284,0.00021126,2]
[366840775,1750501774202,-500.0,0.00021126,2]
[366840776,1750501774222,-186.61257414,0.00021126,2]
[366840777,1750501774243,-500.0,0.00021126,2]
[366840778,1750501774264,-500.0,0.00021126,2]
[366840779,1750501774284,-22281.92736581,0.00021128,2]
[366840808,1750501831960,-598.16471941,0.00020708,2]
[366840810,1750501831974,-4401.83528059,0.00020708,2]
[366840812,1750501831984,-300.0,0.00021125,2]
[366840814,1750501831994,-300.0,0.00021125,2]
[366840816,1750501832004,-444.0,0.00021125,2]
[366840819,1750501832014,-261.90879139,0.00021126,2]
[366840821,1750501832023,-500.0,0.00021126,2]
[366840823,1750501832033,-500.0,0.00021126,2]
[366840825,1750501832043,-500.0,0.00021126,2]
[366840827,1750501832052,-500.0,0.00021126,2]
[366840828,1750501832061,-500.0,0.00021126,2]
[366840831,1750501832071,-500.0,0.00021126,2]
[366840832,1750501832080,-500.0,0.00021126,2]
[366840834,1750501832089,-500.0,0.00021126,2]
[366840836,1750501832099,-500.0,0.00021126,2]
[366840838,1750501832109,-500.0,0.00021126,2]
[366840840,1750501832119,-500.0,0.00021126,2]
[366840843,1750501832129,-500.0,0.00021126,2]
[366840844,1750501832138,-500.0,0.00021126,2]
[366840846,1750501832147,-500.0,0.00021126,2]
[366840848,1750501832157,-500.0,0.00021126,2]
[366840850,1750501832166,-638.31303073,0.00021126,2]
[366840852,1750501832177,-500.0,0.00021126,2]
[366840855,1750501832187,-500.0,0.00021126,2]
[366840857,1750501832196,-500.0,0.00021126,2]
[366840859,1750501832206,-500.0,0.00021126,2]
[366840861,1750501832215,-500.0,0.00021126,2]
[366840863,1750501832225,-500.0,0.00021126,2]
[366840865,1750501832234,-500.0,0.00021126,2]
[366840867,1750501832244,-500.0,0.00021126,2]
[366840869,1750501832253,-500.0,0.00021126,2]
[366840871,1750501832262,-207.81636602,0.00021127,2]
[366840873,1750501832272,-500.0,0.00021127,2]
[366840875,1750501832282,-448.51095434,0.00021127,2]
[366840877,1750501832292,-500.0,0.00021127,2]
[366840879,1750501832301,-500.0,0.00021127,2]
[366840881,1750501832311,-500.0,0.00021127,2]
[366840883,1750501832320,-500.0,0.00021127,2]
[366840885,1750501832329,-500.0,0.00021127,2]
[366840887,1750501832339,-500.0,0.00021127,2]
[366840889,1750501832349,-142.30289588,0.00021128,2]
[366840891,1750501832363,-11.39656412,0.00021128,2]
[366840893,1750501832373,-200.25948506,0.00021128,2]
[366840895,1750501832382,-500.19961868,0.00021173,2]
[366840897,1750501832392,-503.79810707,0.00021173,2]
[366840899,1750501832402,-376.62669077,0.00021173,2]
[366840901,1750501832411,-447.80450568,0.00021173,2]
[366840903,1750501832421,-500.0,0.00021173,2]
[366840905,1750501832430,-500.0,0.00021173,2]
[366840907,1750501832440,-500.0,0.00021173,2]
[366840910,1750501832451,-607.53197589,0.00021173,2]
[366840911,1750501832460,-500.0,0.00021544,2]
[366840913,1750501832469,-500.0,0.00021544,2]
[366840915,1750501832479,-895.36962969,0.0002166,2]
[366840918,1750501832495,-410.2735935,0.0002166,2]
[366840920,1750501832507,-9296.26831308,0.0002166,2]
[366840922,1750501832519,-1409.48520259,0.0002166,2]
[366840940,1750501832685,-981.53668425,0.0002166,2]
[366841146,1750501837774,-2360.79643471,0.00020501,2]
[366841147,1750501837885,-2639.20356529,0.00020501,2]
[366841148,1750501837895,-245.94460774,0.00021125,2]
[366841149,1750501837905,-281.88441717,0.00021125,2]
[366841150,1750501837915,-500.0,0.00021125,2]
[366841151,1750501837924,-187.18486552,0.00021125,2]
[366841152,1750501837934,-500.0,0.00021125,2]
[366841155,1750501837943,-500.0,0.00021125,2]
[366841156,1750501837953,-500.0,0.00021125,2]
[366841157,1750501837962,-500.0,0.00021125,2]
[366841158,1750501837973,-572.71120926,0.00021125,2]
[366841159,1750501837982,-500.0,0.00021125,2]
[366841160,1750501837992,-12007.06657689,0.0002166,2]
[366841161,1750501838002,-262.71024817,0.00021721,2]
[366841170,1750501839947,-237.28975183,0.00021721,2]
[366841171,1750501839958,-285.1272292,0.00021763,2]
[366841172,1750501839968,-168.0,0.00021845,2]
[366841173,1750501839977,-500.0,0.00021867,2]
[366841174,1750501839986,-500.0,0.00021867,2]
[366841175,1750501839996,-550.35644472,0.00021867,2]
[366841176,1750501840005,-194.96025604,0.00021899,2]
[366841177,1750501840014,-500.0,0.00021899,2]
[366841178,1750501840024,-500.0,0.00021899,2]
[366841179,1750501840034,-500.0,0.00021899,2]
[366841180,1750501840044,-500.0,0.00021899,2]
[366841181,1750501840053,-500.0,0.00021899,2]
[366841182,1750501840064,-500.0,0.00021899,2]
[366841183,1750501840073,-500.0,0.00021899,2]
[366841184,1750501840083,-500.0,0.00021899,2]
[366841185,1750501840092,-500.0,0.00021899,2]
[366841186,1750501840102,-500.0,0.00021899,2]
[366841187,1750501840112,-500.0,0.00021899,2]
[366841188,1750501840121,-500.0,0.00021899,2]
[366841189,1750501840131,-719.51317441,0.000219,6]
[366841190,1750501840140,-380.00409345,0.00021917,2]
[366841191,1750501840149,-484.76682105,0.00021917,2]
[366841192,1750501840158,-460.0,0.00021917,2]
[366841193,1750501840168,-422.19053617,0.00021917,2]
[366841194,1750501840177,-719.51317412,0.00022003,6]
[366841195,1750501840188,-836.41202323,0.00022049,2]
[366841196,1750501840197,-719.51317412,0.00022107,6]
[366841197,1750501840207,-307.685859,0.00022191,2]
[366841198,1750501840216,-719.51317412,0.0002221,6]
[366841199,1750501840226,-207.4,0.00022285,2]
[366841200,1750501840236,-719.51317412,0.00022314,7]
[366841201,1750501840245,-719.51317412,0.00022417,7]
[366841202,1750501840255,-719.51317412,0.00022521,7]
[366841203,1750501840271,-168.0,0.00022544,2]
[366841204,1750501840283,-719.51317412,0.00022624,7]
[366841205,1750501840293,-9224.19342574,0.0002266,2]
[366841206,1750501840307,-4519.75818614,0.0002266,2]
[366841207,1750501840316,-5480.24181386,0.0002266,2]
[366841208,1750501840328,-2923.23234064,0.0002266,2]
[366841209,1750501840339,-289.37414065,0.0002266,2]
[366841210,1750501840348,-6312.85696511,0.0002266,2]
[366841211,1750501840362,-17079.95084774,0.0002266,2]
[366841212,1750501840374,-1607.19218715,0.0002266,2]
[366841213,1750501840384,-151.0,0.0002266,7]
[366841214,1750501840394,-151.0,0.0002266,7]
[366841215,1750501840403,-719.51317412,0.00022728,7]
[366841216,1750501840413,-1104.50333288,0.000228,5]
[366841217,1750501840424,-440.0,0.000228,5]
[366841218,1750501840436,-1936.18434817,0.000228,5]
[366841237,1750501843078,-584.76673837,0.000228,5]
[366841238,1750501843090,-877.71580396,0.000228,5]
[366841239,1750501843103,-34543.08204748,0.000228,5]
[366841240,1750501843114,-719.51317412,0.00022831,8]
[366841241,1750501843124,-719.51317412,0.00022934,8]
[366841242,1750501843135,-420.0,0.00022977,2]
[366841243,1750501843144,-351.22473688,0.00022985,2]
[366841244,1750501843155,-719.51317412,0.00023038,8]
[366841245,1750501843165,-168.0,0.00023085,2]
[366841246,1750501843175,-510.04185721,0.00023103,2]
[366841247,1750501843185,-719.51317412,0.00023141,8]
[366841248,1750501843194,-719.51317412,0.00023245,8]
[366841249,1750501843204,-351.22473684,0.00023337,2]
[366841250,1750501843213,-719.51317412,0.00023348,9]
[366841251,1750501843223,-168.0,0.0002335,2]
[366841252,1750501843233,-800.0,0.00023371,2]
[366841253,1750501843243,-423.424669,0.00023448,4]
[366841254,1750501843252,-719.51317412,0.00023452,9]
[366841255,1750501843262,-4937.41,0.00023536,2]
[366841256,1750501843271,-719.51317412,0.00023555,9]
[366841257,1750501843281,-168.0,0.0002359,2]
[366841258,1750501843290,-832.93,0.0002365,3]
[366841259,1750501843299,-215.0738,0.00023654,2]
[366841260,1750501843307,-719.51317412,0.00023659,9]
[366841261,1750501843318,-25000.0,0.0002366,2]
[366841262,1750501843328,-151.0,0.0002366,7]
[366841263,1750501843338,-151.0,0.0002366,7]
[366841264,1750501843347,-151.0,0.0002366,7]
[366841265,1750501843356,-151.0,0.0002366,7]
[366841266,1750501843369,-151.0,0.0002366,7]
[366841267,1750501843379,-151.525355,0.0002366,7]
[366841268,1750501843389,-151.0,0.0002366,7]
[366841269,1750501843399,-151.0,0.0002366,7]
[366841270,1750501843409,-151.0,0.0002366,7]
[366841271,1750501843419,-151.0,0.0002366,7]
[366841272,1750501843428,-151.0,0.0002366,7]
[366841273,1750501843440,-152.14278,0.0002366,7]
[366841274,1750501843449,-151.0,0.0002366,7]
[366841275,1750501843459,-283.0,0.00023675,2]
[366841276,1750501843469,-283.0,0.00023686,2]
[366841277,1750501843479,-351.22473684,0.00023689,2]
[366841278,1750501843489,-168.0,0.00023699,2]
[366841279,1750501843499,-719.51317412,0.00023762,9]
[366841280,1750501843510,-406.0,0.00023802,2]
[366841281,1750501843520,-719.51317412,0.00023866,10]
[366841282,1750501843530,-763.0,0.00023892,2]
[366841283,1750501843542,-224.76,0.000239,2]
[366841284,1750501843552,-2941.34321286,0.000239,2]
[366841285,1750501843562,-152.93624634,0.00023927,2]
[366841286,1750501843572,-153.21834357,0.00023927,2]
[366841287,1750501843582,-151.0,0.00023927,2]
[366841288,1750501843592,-500.0,0.00023927,2]
[366841289,1750501843602,-151.0,0.00023927,2]
[366841290,1750501843612,-84.46718606,0.00023935,7]
[366841291,1750501843622,-13047.48485683,0.0002394,7]
[366841292,1750501843632,-168.0,0.00023948,2]
[366841293,1750501843641,-283.0,0.00023951,2]
[366841294,1750501843651,-500.0,0.00023954,2]
[366841295,1750501843660,-151.0,0.00023967,7]
[366841296,1750501843669,-151.0,0.00023967,7]
[366841297,1750501843679,-151.0,0.00023967,7]
[366841298,1750501843688,-151.0,0.00023967,7]
[366841299,1750501843698,-719.51317412,0.00023969,10]
[366841300,1750501843708,-500.0,0.00023982,2]
[366841301,1750501843719,-502.42259433,0.00023998,2]
[366841302,1750501843728,-160.0,0.00023999,2]
[366841303,1750501843739,-4635.65026816,0.00023999,2]
[366841304,1750501843748,-7988.59441817,0.00024,2]
[366841310,1750501845826,-3956.020652,0.00024,2]
[366841311,1750501890309,-374.0,0.00019587,2]
[366841312,1750501974515,100000.0,0.00023,30]
[366841314,1750502010848,200.0,0.00024119,120]
[366841315,1750502042621,-223.0,0.00019391,2]
[366841316,1750502055362,-4777.0,0.00019391,2]
[366841317,1750502055383,-179.08923565,0.00019487,2]
[366841318,1750502055404,-1341.91076435,0.00019587,2]
[366841319,1750502057191,3179.45476744,0.00019102,2]
[366841320,1750502071291,200.0,0.00024652,120]
[366841321,1750502190491,200.0,0.00023909,120]
[366841322,1750502251630,200.0,0.00024342,120]
[366841323,1750502370773,200.0,0.0002387,120]
[366841324,1750502377284,5000.0,0.00019102,2]
[366841325,1750502490731,200.0,0.00023976,120]
[366841326,1750502551346,200.0,0.00024415,120]
[366841327,1750502656821,2000.0,0.00018757,120]
[366841328,1750502670932,200.0,0.00024068,120]
[366841329,1750502731180,-663.09464003,0.00019391,2]
[366841330,1750502750602,390.6090662,0.00018716,2]
[366841331,1750502770235,5000.0,0.00019102,2]
[366841332,1750502788299,-160.0,0.00019291,2]
[366841333,1750502790527,200.0,0.00024152,120]
[366841334,1750502826135,-4840.0,0.00019291,2]
[366841335,1750502826159,-162.62661369,0.00019486,2]
[366841336,1750502826182,-162.62661365,0.00019545,2]
[366841337,1750502826205,-1200.0,0.00019586,2]